[Event "Titled Tuesday Blitz December 7 2021"]
[White "Mustafayev, Farid"]
[Black "Krivonosov, Oleg"]
[WhiteFideId "13408771"]
[BlackFideId "11600349"]
[WhiteElo "2091"]
[BlackElo "2469"]
[Result "0-1"]
[Round "07"]
[TimeControl "180+1"]
[Date "2021.12.07"]
[WhiteClock "0:00:07"]
[BlackClock "0:00:08"]

1. d4 {[%clk 0:03:00]}  d5 {[%clk 0:02:59]} 2. c4 {[%clk 0:03:00]}  e6 {[%clk 0:02:58]} 3. Nc3 {[%clk 0:03:00]}  Be7 {[%clk 0:02:58]} 4. cxd5 {[%clk 0:02:59]}  exd5 {[%clk 0:02:57]} 5. Qc2 {[%clk 0:03:00]}  Nf6 {[%clk 0:02:57]} 6. Bg5 {[%clk 0:03:00]}  c6 {[%clk 0:02:56]} 7. e3 {[%clk 0:03:00]}  Nbd7 {[%clk 0:02:55]} 8. Bd3 {[%clk 0:03:00]}  Nh5 {[%clk 0:02:54]} 9. Bxe7 {[%clk 0:02:51]}  Qxe7 {[%clk 0:02:55]} 10. Nf3 {[%clk 0:02:49]}  Nf4 {[%clk 0:02:53]} 11. Bf1 {[%clk 0:02:44]}  g6 {[%clk 0:02:44]} 12. g3 {[%clk 0:02:37]}  Nh5 {[%clk 0:02:41]} 13. Bg2 {[%clk 0:02:31]}  Nb6 {[%clk 0:02:30]} 14. O-O {[%clk 0:02:26]}  Bf5 {[%clk 0:02:26]} 15. Qe2 {[%clk 0:02:20]}  Nf6 {[%clk 0:02:20]} 16. Ne5 {[%clk 0:02:19]}  Nbd7 {[%clk 0:02:16]} 17. f4 {[%clk 0:02:00]}  h5 {[%clk 0:02:10]} 18. h3 {[%clk 0:01:55]}  Ne4 {[%clk 0:01:55]} 19. Bxe4 {[%clk 0:01:24]}  Bxe4 {[%clk 0:01:49]} 20. Nxe4 {[%clk 0:01:21]}  dxe4 {[%clk 0:01:49]} 21. Qg2 {[%clk 0:01:18]}  Nf6 {[%clk 0:01:42]} 22. g4 {[%clk 0:01:10]}  hxg4 {[%clk 0:01:40]} 23. hxg4 {[%clk 0:01:11]}  O-O-O {[%clk 0:01:29]} 24. g5 {[%clk 0:01:01]}  Nd5 {[%clk 0:01:24]} 25. Qg3 {[%clk 0:00:49]}  Qe6 {[%clk 0:01:18]} 26. Kg2 {[%clk 0:00:47]}  Ne7 {[%clk 0:01:08]} 27. Rh1 {[%clk 0:00:38]}  Nf5 {[%clk 0:01:08]} 28. Qf2 {[%clk 0:00:38]}  Kb8 {[%clk 0:01:01]} 29. b3 {[%clk 0:00:35]}  c5 {[%clk 0:00:52]} 30. Rxh8 {[%clk 0:00:34]}  Rxh8 {[%clk 0:00:51]} 31. dxc5 {[%clk 0:00:29]}  Nh4+ {[%clk 0:00:43]} 32. Kf1 {[%clk 0:00:29]}  Qh3+ {[%clk 0:00:42]} 33. Ke2 {[%clk 0:00:29]}  Nf3 {[%clk 0:00:29]} 34. Nxf7 {[%clk 0:00:22]}  Qd7 {[%clk 0:00:22]} 35. Nd6 {[%clk 0:00:19]}  Rh2 {[%clk 0:00:21]} 36. Nxe4 {[%clk 0:00:19]}  Rxf2+ {[%clk 0:00:19]} 37. Nxf2 {[%clk 0:00:20]}  Nh4 {[%clk 0:00:17]} 38. Rd1 {[%clk 0:00:20]}  Qb5+ {[%clk 0:00:16]} 39. Nd3 {[%clk 0:00:18]}  Qd7 {[%clk 0:00:13]} 40. Rg1 {[%clk 0:00:18]}  Qh3 {[%clk 0:00:12]} 41. Nf2 {[%clk 0:00:14]}  Qh2 {[%clk 0:00:10]} 42. Rd1 {[%clk 0:00:13]}  Nf5 {[%clk 0:00:09]} 43. Rd5 {[%clk 0:00:09]}  Qg3 {[%clk 0:00:08]} 44. Re5 {[%clk 0:00:09]}  Qg2 {[%clk 0:00:08]} 45. b4 {[%clk 0:00:09]}  Ng3+ {[%clk 0:00:08]} 46. Kd3 {[%clk 0:00:07]}  Qxf2 {[%clk 0:00:08]} 0-1


[Site "https://www.chess.com"]

[Event "Titled Tuesday Blitz December 7 2021"]
[White "Myshakov, Fyodor"]
[Black "Begmuratov, Khumoyun"]
[WhiteFideId "14111284"]
[BlackFideId "14210207"]
[WhiteElo "2310"]
[BlackElo "1961"]
[Result "1-0"]
[Round "07"]
[TimeControl "180+1"]
[Date "2021.12.07"]
[WhiteClock "0:00:04"]
[BlackClock "0:00:03"]

1. c4 {[%clk 0:02:59]}  Nf6 {[%clk 0:02:59]} 2. Nc3 {[%clk 0:02:59]}  g6 {[%clk 0:02:59]} 3. Nf3 {[%clk 0:03:00]}  Bg7 {[%clk 0:02:59]} 4. g3 {[%clk 0:03:00]}  O-O {[%clk 0:03:00]} 5. Bg2 {[%clk 0:03:00]}  d5 {[%clk 0:03:00]} 6. cxd5 {[%clk 0:03:01]}  Nxd5 {[%clk 0:03:01]} 7. O-O {[%clk 0:03:01]}  c5 {[%clk 0:02:58]} 8. Nxd5 {[%clk 0:02:52]}  Qxd5 {[%clk 0:02:58]} 9. d3 {[%clk 0:02:51]}  Nc6 {[%clk 0:02:58]} 10. a3 {[%clk 0:02:49]}  Qd6 {[%clk 0:02:42]} 11. Qc2 {[%clk 0:02:45]}  b6 {[%clk 0:02:39]} 12. Bf4 {[%clk 0:02:44]}  Qf6 {[%clk 0:02:08]} 13. Ne5 {[%clk 0:02:07]}  Nd4 {[%clk 0:01:24]} 14. Qd1 {[%clk 0:02:01]}  Rb8 {[%clk 0:01:22]} 15. Nxf7 {[%clk 0:01:09]}  Rb7 {[%clk 0:00:52]} 16. Ng5 {[%clk 0:01:00]}  e5 {[%clk 0:00:43]} 17. Ne4 {[%clk 0:00:58]}  Qe6 {[%clk 0:00:33]} 18. Be3 {[%clk 0:00:55]}  Rc7 {[%clk 0:00:26]} 19. Bxd4 {[%clk 0:00:51]}  exd4 {[%clk 0:00:25]} 20. Qc2 {[%clk 0:00:32]}  Re7 {[%clk 0:00:20]} 21. Rae1 {[%clk 0:00:22]}  Bb7 {[%clk 0:00:20]} 22. Ng5 {[%clk 0:00:18]}  Qf5 {[%clk 0:00:18]} 23. Qc4+ {[%clk 0:00:16]}  Kh8 {[%clk 0:00:17]} 24. Bxb7 {[%clk 0:00:15]}  Rxb7 {[%clk 0:00:18]} 25. Ne6 {[%clk 0:00:15]}  Re8 {[%clk 0:00:16]} 26. Nxg7 {[%clk 0:00:15]}  Kxg7 {[%clk 0:00:16]} 27. e4 {[%clk 0:00:14]}  Qd7 {[%clk 0:00:11]} 28. f4 {[%clk 0:00:15]}  Rc7 {[%clk 0:00:11]} 29. f5 {[%clk 0:00:14]}  gxf5 {[%clk 0:00:10]} 30. Rxf5 {[%clk 0:00:10]}  Qxf5 {[%clk 0:00:10]} 31. exf5 {[%clk 0:00:10]}  Rxe1+ {[%clk 0:00:11]} 32. Kg2 {[%clk 0:00:11]}  Rce7 {[%clk 0:00:11]} 33. Qd5 {[%clk 0:00:10]}  R1e5 {[%clk 0:00:06]} 34. Qf3 {[%clk 0:00:09]}  Rf7 {[%clk 0:00:06]} 35. g4 {[%clk 0:00:07]}  h5 {[%clk 0:00:05]} 36. h3 {[%clk 0:00:07]}  hxg4 {[%clk 0:00:06]} 37. hxg4 {[%clk 0:00:07]}  Re3 {[%clk 0:00:06]} 38. Qf4 {[%clk 0:00:07]}  Rxd3 {[%clk 0:00:07]} 39. Qg5+ {[%clk 0:00:08]}  Kf8 {[%clk 0:00:07]} 40. Qh6+ {[%clk 0:00:08]}  Ke8 {[%clk 0:00:05]} 41. Qe6+ {[%clk 0:00:07]}  Re7 {[%clk 0:00:06]} 42. Qg8+ {[%clk 0:00:07]}  Kd7 {[%clk 0:00:06]} 43. Qd5+ {[%clk 0:00:06]}  Kc7 {[%clk 0:00:06]} 44. f6 {[%clk 0:00:06]}  Re2+ {[%clk 0:00:06]} 45. Kf1 {[%clk 0:00:06]}  Rxb2 {[%clk 0:00:07]} 46. Qe5+ {[%clk 0:00:05]}  Kd8 {[%clk 0:00:04]} 47. Qd5+ {[%clk 0:00:03]}  Kc7 {[%clk 0:00:04]} 48. Qe5+ {[%clk 0:00:03]}  Kd8 {[%clk 0:00:03]} 49. Qe7+ {[%clk 0:00:03]}  Kc8 {[%clk 0:00:03]} 50. Qe6+ {[%clk 0:00:02]}  Kb8 {[%clk 0:00:03]} 51. Qe5+ {[%clk 0:00:02]}  Kc8 {[%clk 0:00:03]} 52. Qf5+ {[%clk 0:00:03]}  Kd8 {[%clk 0:00:03]} 53. Qxd3 {[%clk 0:00:04]}  c4 {[%clk 0:00:03]} 54. Qxd4+ {[%clk 0:00:04]} 1-0


[Site "https://www.chess.com"]

[Event "Titled Tuesday Blitz December 7 2021"]
[White "Obolentseva, Alexandra"]
[Black "Leiva, Gianmarco"]
[WhiteFideId "24153648"]
[BlackFideId "3804399"]
[WhiteElo "2113"]
[BlackElo "2328"]
[Result "0-1"]
[Round "07"]
[TimeControl "180+1"]
[Date "2021.12.07"]
[WhiteClock "0:00:19"]
[BlackClock "0:00:03"]

1. d4 {[%clk 0:03:00]}  Nf6 {[%clk 0:02:54]} 2. c4 {[%clk 0:03:00]}  e6 {[%clk 0:02:54]} 3. Nc3 {[%clk 0:02:57]}  Bb4 {[%clk 0:02:54]} 4. Qc2 {[%clk 0:02:57]}  O-O {[%clk 0:02:51]} 5. a3 {[%clk 0:02:55]}  Bxc3+ {[%clk 0:02:48]} 6. Qxc3 {[%clk 0:02:56]}  d5 {[%clk 0:02:47]} 7. Bg5 {[%clk 0:02:55]}  c5 {[%clk 0:02:22]} 8. dxc5 {[%clk 0:02:47]}  d4 {[%clk 0:02:21]} 9. Qc2 {[%clk 0:02:47]}  e5 {[%clk 0:02:20]} 10. O-O-O {[%clk 0:02:45]}  Nbd7 {[%clk 0:02:11]} 11. e3 {[%clk 0:02:36]}  Nxc5 {[%clk 0:02:10]} 12. exd4 {[%clk 0:02:34]}  exd4 {[%clk 0:02:10]} 13. Nf3 {[%clk 0:02:32]}  Qb6 {[%clk 0:01:26]} 14. Nxd4 {[%clk 0:02:16]}  Bg4 {[%clk 0:01:25]} 15. f3 {[%clk 0:02:15]}  Bh5 {[%clk 0:01:25]} 16. Nf5 {[%clk 0:02:02]}  Bg6 {[%clk 0:01:19]} 17. Ne7+ {[%clk 0:02:02]}  Kh8 {[%clk 0:01:17]} 18. Nxg6+ {[%clk 0:02:03]}  hxg6 {[%clk 0:01:18]} 19. b4 {[%clk 0:01:57]}  Ne6 {[%clk 0:01:17]} 20. Bxf6 {[%clk 0:01:57]}  gxf6 {[%clk 0:01:18]} 21. c5 {[%clk 0:01:57]}  Qc7 {[%clk 0:01:17]} 22. Bc4 {[%clk 0:01:50]}  Rfe8 {[%clk 0:00:58]} 23. Bxe6 {[%clk 0:01:45]}  Rxe6 {[%clk 0:00:58]} 24. Rhe1 {[%clk 0:01:32]}  Rxe1 {[%clk 0:00:34]} 25. Rxe1 {[%clk 0:01:33]}  a5 {[%clk 0:00:35]} 26. Kb2 {[%clk 0:01:22]}  Kg7 {[%clk 0:00:26]} 27. Qc3 {[%clk 0:01:15]}  Qxh2 {[%clk 0:00:22]} 28. Re2 {[%clk 0:01:12]}  axb4 {[%clk 0:00:23]} 29. axb4 {[%clk 0:01:13]}  Qg1 {[%clk 0:00:23]} 30. Kb3 {[%clk 0:01:07]}  Qd1+ {[%clk 0:00:11]} 31. Rc2 {[%clk 0:01:07]}  Ra1 {[%clk 0:00:08]} 32. Kc4 {[%clk 0:01:03]}  Rb1 {[%clk 0:00:04]} 33. Rd2 {[%clk 0:00:54]}  Qa4 {[%clk 0:00:03]} 34. Rb2 {[%clk 0:00:50]}  Qa6+ {[%clk 0:00:03]} 35. Kd4 {[%clk 0:00:50]}  Rd1+ {[%clk 0:00:02]} 36. Ke3 {[%clk 0:00:48]}  Qe6+ {[%clk 0:00:02]} 37. Kf2 {[%clk 0:00:49]}  Rd5 {[%clk 0:00:02]} 38. Re2 {[%clk 0:00:48]}  Qd7 {[%clk 0:00:02]} 39. Qc4 {[%clk 0:00:46]}  Rd4 {[%clk 0:00:03]} 40. Qc3 {[%clk 0:00:45]}  Rd3 {[%clk 0:00:03]} 41. Qc4 {[%clk 0:00:44]}  Rd4 {[%clk 0:00:04]} 42. Qc3 {[%clk 0:00:44]}  Qd5 {[%clk 0:00:04]} 43. Rb2 {[%clk 0:00:32]}  Rd3 {[%clk 0:00:03]} 44. Qc2 {[%clk 0:00:29]}  Qd4+ {[%clk 0:00:04]} 45. Kg3 {[%clk 0:00:29]}  g5 {[%clk 0:00:04]} 46. Qe2 {[%clk 0:00:19]}  Qh4# {[%clk 0:00:03]} 0-1


[Site "https://www.chess.com"]

[Event "Titled Tuesday Blitz December 7 2021"]
[White "Ozen, Bahadir"]
[Black "Gontcharov, Vladislav"]
[WhiteFideId "6337058"]
[BlackFideId "4123492"]
[WhiteElo "2503"]
[BlackElo "2503"]
[Result "1/2-1/2"]
[Round "07"]
[TimeControl "180+1"]
[Date "2021.12.07"]
[WhiteClock "0:00:14"]
[BlackClock "0:00:13"]

1. Nf3 {[%clk 0:03:00]}  Nf6 {[%clk 0:02:58]} 2. e3 {[%clk 0:03:01]}  g6 {[%clk 0:02:58]} 3. Be2 {[%clk 0:03:01]}  Bg7 {[%clk 0:02:59]} 4. O-O {[%clk 0:03:01]}  O-O {[%clk 0:02:59]} 5. d4 {[%clk 0:03:02]}  c5 {[%clk 0:03:00]} 6. dxc5 {[%clk 0:03:02]}  Qc7 {[%clk 0:02:58]} 7. a3 {[%clk 0:02:50]}  Qxc5 {[%clk 0:02:55]} 8. b4 {[%clk 0:02:49]}  Qc7 {[%clk 0:02:54]} 9. Bb2 {[%clk 0:02:50]}  a5 {[%clk 0:02:54]} 10. c4 {[%clk 0:02:42]}  axb4 {[%clk 0:02:53]} 11. axb4 {[%clk 0:02:43]}  Rxa1 {[%clk 0:02:53]} 12. Bxa1 {[%clk 0:02:44]}  d6 {[%clk 0:02:51]} 13. Nc3 {[%clk 0:02:34]}  Bg4 {[%clk 0:02:45]} 14. Nb5 {[%clk 0:02:27]}  Qc8 {[%clk 0:02:42]} 15. Qb3 {[%clk 0:02:25]}  Nc6 {[%clk 0:02:35]} 16. h3 {[%clk 0:02:23]}  Bd7 {[%clk 0:02:29]} 17. Rd1 {[%clk 0:02:16]}  Ne8 {[%clk 0:02:25]} 18. Bxg7 {[%clk 0:02:11]}  Nxg7 {[%clk 0:02:26]} 19. c5 {[%clk 0:02:08]}  dxc5 {[%clk 0:02:17]} 20. bxc5 {[%clk 0:02:08]}  Ne6 {[%clk 0:02:18]} 21. Qc3 {[%clk 0:02:04]}  Nb8 {[%clk 0:02:13]} 22. Rc1 {[%clk 0:01:54]}  Na6 {[%clk 0:02:12]} 23. Qb2 {[%clk 0:01:29]}  Naxc5 {[%clk 0:02:07]} 24. Nbd4 {[%clk 0:01:29]}  Qb8 {[%clk 0:01:51]} 25. Rb1 {[%clk 0:01:24]}  Rc8 {[%clk 0:01:46]} 26. Nxe6 {[%clk 0:01:21]}  Bxe6 {[%clk 0:01:42]} 27. Nd4 {[%clk 0:01:22]}  Bd5 {[%clk 0:01:41]} 28. Qb5 {[%clk 0:01:16]}  Qd6 {[%clk 0:01:35]} 29. Rc1 {[%clk 0:01:13]}  b6 {[%clk 0:01:30]} 30. Rb1 {[%clk 0:01:13]}  Nd7 {[%clk 0:01:30]} 31. Rd1 {[%clk 0:01:06]}  Nf6 {[%clk 0:01:23]} 32. Rb1 {[%clk 0:01:05]}  h5 {[%clk 0:01:18]} 33. Bf1 {[%clk 0:01:01]}  Rb8 {[%clk 0:01:15]} 34. Ne2 {[%clk 0:01:00]}  Kg7 {[%clk 0:01:13]} 35. Qb2 {[%clk 0:01:00]}  b5 {[%clk 0:01:10]} 36. Rd1 {[%clk 0:01:00]}  Qc6 {[%clk 0:00:56]} 37. Nd4 {[%clk 0:00:59]}  Qa8 {[%clk 0:00:51]} 38. Nxb5 {[%clk 0:00:53]}  Bc6 {[%clk 0:00:51]} 39. Qe5 {[%clk 0:00:52]}  Bxb5 {[%clk 0:00:43]} 40. Bxb5 {[%clk 0:00:53]}  Rb6 {[%clk 0:00:43]} 41. Be2 {[%clk 0:00:49]}  Qa2 {[%clk 0:00:43]} 42. Bf3 {[%clk 0:00:46]}  Rb2 {[%clk 0:00:42]} 43. Rf1 {[%clk 0:00:46]}  Rb1 {[%clk 0:00:41]} 44. Rxb1 {[%clk 0:00:44]}  Qxb1+ {[%clk 0:00:40]} 45. Kh2 {[%clk 0:00:44]}  Qb4 {[%clk 0:00:41]} 46. g3 {[%clk 0:00:36]}  Qa3 {[%clk 0:00:36]} 47. Kg2 {[%clk 0:00:36]}  Kg8 {[%clk 0:00:34]} 48. Qb8+ {[%clk 0:00:35]}  Kg7 {[%clk 0:00:34]} 49. Qe5 {[%clk 0:00:36]}  Kg8 {[%clk 0:00:32]} 50. g4 {[%clk 0:00:36]}  hxg4 {[%clk 0:00:31]} 51. hxg4 {[%clk 0:00:37]}  Qa7 {[%clk 0:00:22]} 52. Kg3 {[%clk 0:00:31]}  Qd7 {[%clk 0:00:20]} 53. Qb8+ {[%clk 0:00:29]}  Kg7 {[%clk 0:00:19]} 54. Qe5 {[%clk 0:00:30]}  Kg8 {[%clk 0:00:19]} 55. Be2 {[%clk 0:00:28]}  Ne8 {[%clk 0:00:19]} 56. Bc4 {[%clk 0:00:25]}  Nd6 {[%clk 0:00:19]} 57. Bd5 {[%clk 0:00:23]}  Qa7 {[%clk 0:00:17]} 58. Bf3 {[%clk 0:00:20]}  Qc7 {[%clk 0:00:15]} 59. Kg2 {[%clk 0:00:20]}  Qa7 {[%clk 0:00:15]} 60. Bd5 {[%clk 0:00:19]}  Qc7 {[%clk 0:00:14]} 61. Bf3 {[%clk 0:00:18]}  Qa7 {[%clk 0:00:13]} 62. Kh3 {[%clk 0:00:15]}  Qc7 {[%clk 0:00:13]} 63. Kg2 {[%clk 0:00:14]} 1/2-1/2


[Site "https://www.chess.com"]

[Event "Titled Tuesday Blitz December 7 2021"]
[White "Paravyan, David"]
[Black "Nakamura, Hikaru"]
[WhiteFideId "4194985"]
[BlackFideId "2016192"]
[WhiteElo "3029"]
[BlackElo "3150"]
[Result "1/2-1/2"]
[Round "07"]
[TimeControl "180+1"]
[Date "2021.12.07"]
[WhiteClock "0:00:29"]
[BlackClock "0:00:32"]

1. e4 {[%clk 0:03:00]}  e5 {[%clk 0:02:57]} 2. Nf3 {[%clk 0:03:00]}  Nc6 {[%clk 0:02:58]} 3. Nc3 {[%clk 0:03:01]}  Nf6 {[%clk 0:02:55]} 4. d4 {[%clk 0:03:01]}  exd4 {[%clk 0:02:55]} 5. Nxd4 {[%clk 0:03:02]}  Bb4 {[%clk 0:02:55]} 6. Nxc6 {[%clk 0:03:03]}  bxc6 {[%clk 0:02:55]} 7. Bd3 {[%clk 0:03:03]}  O-O {[%clk 0:02:51]} 8. O-O {[%clk 0:03:04]}  d5 {[%clk 0:02:51]} 9. exd5 {[%clk 0:03:04]}  cxd5 {[%clk 0:02:52]} 10. Bg5 {[%clk 0:03:04]}  c6 {[%clk 0:02:52]} 11. Qf3 {[%clk 0:03:04]}  Rb8 {[%clk 0:02:45]} 12. h3 {[%clk 0:03:03]}  Bd6 {[%clk 0:02:42]} 13. b3 {[%clk 0:03:03]}  Be5 {[%clk 0:02:42]} 14. Bf4 {[%clk 0:03:03]}  Qd6 {[%clk 0:02:22]} 15. Bxe5 {[%clk 0:03:03]}  Qxe5 {[%clk 0:02:23]} 16. Na4 {[%clk 0:03:04]}  Be6 {[%clk 0:02:14]} 17. Rad1 {[%clk 0:03:02]}  Qd6 {[%clk 0:02:11]} 18. Qe3 {[%clk 0:03:02]}  d4 {[%clk 0:02:02]} 19. Qg5 {[%clk 0:02:47]}  Bd5 {[%clk 0:01:59]} 20. c3 {[%clk 0:02:28]}  h6 {[%clk 0:01:56]} 21. Qh4 {[%clk 0:02:23]}  dxc3 {[%clk 0:01:56]} 22. Nxc3 {[%clk 0:02:22]}  Rb4 {[%clk 0:01:56]} 23. Qg3 {[%clk 0:02:15]}  Qxg3 {[%clk 0:01:54]} 24. fxg3 {[%clk 0:02:16]}  Be6 {[%clk 0:01:49]} 25. Na4 {[%clk 0:02:10]}  Nd7 {[%clk 0:01:44]} 26. Rc1 {[%clk 0:02:07]}  Bd5 {[%clk 0:01:44]} 27. Rfe1 {[%clk 0:01:56]}  g6 {[%clk 0:01:40]} 28. Re7 {[%clk 0:01:53]}  Rd8 {[%clk 0:01:40]} 29. Rce1 {[%clk 0:01:34]}  Kf8 {[%clk 0:01:22]} 30. R7e3 {[%clk 0:01:32]}  c5 {[%clk 0:01:20]} 31. Rc1 {[%clk 0:01:28]}  Rc8 {[%clk 0:01:18]} 32. Bf1 {[%clk 0:01:28]}  Be6 {[%clk 0:01:07]} 33. Rec3 {[%clk 0:01:27]}  a5 {[%clk 0:01:02]} 34. Nxc5 {[%clk 0:01:10]}  Nxc5 {[%clk 0:01:02]} 35. Rxc5 {[%clk 0:01:11]}  Rxc5 {[%clk 0:01:03]} 36. Rxc5 {[%clk 0:01:11]}  a4 {[%clk 0:01:04]} 37. Bc4 {[%clk 0:01:08]}  axb3 {[%clk 0:01:04]} 38. axb3 {[%clk 0:01:09]}  Bxc4 {[%clk 0:01:04]} 39. bxc4 {[%clk 0:01:10]}  Rb2 {[%clk 0:00:59]} 40. g4 {[%clk 0:01:09]}  Rc2 {[%clk 0:00:59]} 41. Rc7 {[%clk 0:01:08]}  Kg7 {[%clk 0:00:59]} 42. Kh2 {[%clk 0:01:09]}  Rc3 {[%clk 0:00:58]} 43. c5 {[%clk 0:01:08]}  Kf6 {[%clk 0:00:57]} 44. c6 {[%clk 0:01:06]}  Ke6 {[%clk 0:00:57]} 45. h4 {[%clk 0:01:03]}  g5 {[%clk 0:00:45]} 46. h5 {[%clk 0:01:02]}  Kd6 {[%clk 0:00:45]} 47. Rxf7 {[%clk 0:00:37]}  Rxc6 {[%clk 0:00:44]} 48. Rf6+ {[%clk 0:00:37]}  Kd5 {[%clk 0:00:44]} 49. Rg6 {[%clk 0:00:37]}  Rxg6 {[%clk 0:00:37]} 50. hxg6 {[%clk 0:00:38]}  Ke6 {[%clk 0:00:37]} 51. Kg3 {[%clk 0:00:39]}  Kf6 {[%clk 0:00:38]} 52. Kf3 {[%clk 0:00:40]}  Kxg6 {[%clk 0:00:38]} 53. Ke4 {[%clk 0:00:40]}  Kf6 {[%clk 0:00:31]} 54. Kd5 {[%clk 0:00:40]}  Kf7 {[%clk 0:00:31]} 55. Ke5 {[%clk 0:00:36]}  Ke7 {[%clk 0:00:31]} 56. Kf5 {[%clk 0:00:35]}  Kf7 {[%clk 0:00:32]} 57. g3 {[%clk 0:00:31]}  Kg7 {[%clk 0:00:31]} 58. Ke5 {[%clk 0:00:27]}  Kg6 {[%clk 0:00:32]} 59. Ke6 {[%clk 0:00:27]}  h5 {[%clk 0:00:29]} 60. gxh5+ {[%clk 0:00:26]}  Kxh5 {[%clk 0:00:30]} 61. Kf5 {[%clk 0:00:26]}  g4 {[%clk 0:00:30]} 62. Kf4 {[%clk 0:00:26]}  Kh6 {[%clk 0:00:31]} 63. Kxg4 {[%clk 0:00:26]}  Kg6 {[%clk 0:00:31]} 64. Kf4 {[%clk 0:00:27]}  Kf6 {[%clk 0:00:31]} 65. g4 {[%clk 0:00:27]}  Kg6 {[%clk 0:00:32]} 66. g5 {[%clk 0:00:27]}  Kg7 {[%clk 0:00:32]} 67. Ke3 {[%clk 0:00:28]}  Kg6 {[%clk 0:00:32]} 68. Kd2 {[%clk 0:00:29]}  Kxg5 {[%clk 0:00:32]} 1/2-1/2


[Site "https://www.chess.com"]

[Event "Titled Tuesday Blitz December 7 2021"]
[White "Perez Gormaz, Matias"]
[Black "Seletsky, Grigory"]
[WhiteFideId "3406342"]
[BlackFideId "14112191"]
[WhiteElo "2352"]
[BlackElo "2492"]
[Result "1-0"]
[Round "07"]
[TimeControl "180+1"]
[Date "2021.12.07"]
[WhiteClock "0:00:04"]
[BlackClock "0:00:11"]

1. e4 {[%clk 0:02:58]}  e6 {[%clk 0:02:57]} 2. d4 {[%clk 0:02:57]}  d5 {[%clk 0:02:57]} 3. Nc3 {[%clk 0:02:58]}  Nc6 {[%clk 0:02:50]} 4. Nf3 {[%clk 0:02:58]}  Nf6 {[%clk 0:02:45]} 5. Bd3 {[%clk 0:02:58]}  Nb4 {[%clk 0:02:39]} 6. O-O {[%clk 0:02:55]}  Be7 {[%clk 0:02:34]} 7. Bg5 {[%clk 0:02:54]}  O-O {[%clk 0:02:33]} 8. Bxf6 {[%clk 0:02:50]}  Bxf6 {[%clk 0:02:27]} 9. Be2 {[%clk 0:02:47]}  dxe4 {[%clk 0:02:18]} 10. Nxe4 {[%clk 0:02:48]}  b6 {[%clk 0:02:17]} 11. c3 {[%clk 0:02:42]}  Nd5 {[%clk 0:02:16]} 12. Re1 {[%clk 0:02:42]}  Bb7 {[%clk 0:02:16]} 13. Bd3 {[%clk 0:02:41]}  Nf4 {[%clk 0:02:09]} 14. Bc2 {[%clk 0:02:39]}  Re8 {[%clk 0:02:01]} 15. Qd2 {[%clk 0:02:38]}  Ng6 {[%clk 0:01:57]} 16. Rad1 {[%clk 0:02:32]}  Rc8 {[%clk 0:01:52]} 17. Ba4 {[%clk 0:02:19]}  Rf8 {[%clk 0:01:48]} 18. g3 {[%clk 0:02:07]}  Be7 {[%clk 0:01:41]} 19. h4 {[%clk 0:01:58]}  Qd5 {[%clk 0:01:41]} 20. Bb3 {[%clk 0:01:02]}  Qf5 {[%clk 0:01:39]} 21. Qe2 {[%clk 0:00:47]}  Rfd8 {[%clk 0:01:26]} 22. Neg5 {[%clk 0:00:46]}  Bxg5 {[%clk 0:01:15]} 23. Nxg5 {[%clk 0:00:46]}  Nf8 {[%clk 0:01:06]} 24. Bc2 {[%clk 0:00:44]}  Qf6 {[%clk 0:01:06]} 25. Be4 {[%clk 0:00:25]}  Bd5 {[%clk 0:01:00]} 26. Bxd5 {[%clk 0:00:21]}  Rxd5 {[%clk 0:00:59]} 27. Qf3 {[%clk 0:00:16]}  Rcd8 {[%clk 0:00:52]} 28. Qxf6 {[%clk 0:00:15]}  gxf6 {[%clk 0:00:52]} 29. Ne4 {[%clk 0:00:15]}  Kg7 {[%clk 0:00:51]} 30. Rc1 {[%clk 0:00:14]}  f5 {[%clk 0:00:50]} 31. Ng5 {[%clk 0:00:13]}  h6 {[%clk 0:00:49]} 32. Nf3 {[%clk 0:00:13]}  Ng6 {[%clk 0:00:44]} 33. c4 {[%clk 0:00:08]}  R5d7 {[%clk 0:00:42]} 34. h5 {[%clk 0:00:09]}  Nf8 {[%clk 0:00:39]} 35. c5 {[%clk 0:00:08]}  Nh7 {[%clk 0:00:36]} 36. Kg2 {[%clk 0:00:06]}  Nf6 {[%clk 0:00:35]} 37. Rh1 {[%clk 0:00:05]}  Rd5 {[%clk 0:00:34]} 38. b4 {[%clk 0:00:05]}  f4 {[%clk 0:00:27]} 39. gxf4 {[%clk 0:00:01]}  Rxh5 {[%clk 0:00:21]} 40. Rxh5 {[%clk 0:00:01]}  Nxh5 {[%clk 0:00:20]} 41. cxb6 {[%clk 0:00:02]}  cxb6 {[%clk 0:00:19]} 42. Rc7 {[%clk 0:00:02]}  Nxf4+ {[%clk 0:00:17]} 43. Kg3 {[%clk 0:00:02]}  Ne2+ {[%clk 0:00:17]} 44. Kg4 {[%clk 0:00:01]}  Nxd4 {[%clk 0:00:16]} 45. Ne5 {[%clk 0:00:02]}  Nf5 {[%clk 0:00:14]} 46. Rxf7+ {[%clk 0:00:02]}  Kg8 {[%clk 0:00:14]} 47. Rxa7 {[%clk 0:00:03]}  Rd4+ {[%clk 0:00:14]} 48. f4 {[%clk 0:00:03]}  Rxb4 {[%clk 0:00:13]} 49. Rb7 {[%clk 0:00:04]}  Ra4 {[%clk 0:00:12]} 50. Kh5 {[%clk 0:00:04]}  Rxf4 {[%clk 0:00:11]} 51. Kg6 {[%clk 0:00:04]}  Rg4+ {[%clk 0:00:11]} 52. Nxg4 {[%clk 0:00:04]} 1-0


[Site "https://www.chess.com"]